[Event "GCT Superbet Romania 2024"]
[Site "Bucharest"]
[Date "2024.07.02"]
[Round "6.5"]
[White "Abdusattorov, Nodirbek"]
[Black "Giri, Anish"]
[Result "1/2-1/2"]
[ECO "B90"]
[WhiteElo "2766"]
[BlackElo "2745"]
[Annotator "TA"]
[PlyCount "189"]
[EventDate "2024.06.24"]
[EventType "tourn"]
[EventCountry "ROU"]
[SourceTitle "playchess.com"]
[Source "ChessBase"]
[SourceQuality "1"]
[TimeControl "7200+30"]

{[%evp 9,189,20,23,19,17,-10,3,-13,10,10,0,0,7,0,0,0,20,8,25,24,26,28,17,16,23,0,0,0,0,0,0,0,0,-8,-8,0,0,0,0,0,0,0,0,-6,-6,-23,0,-8,0,-35,-27,-41,-8,-7,0,0,0,0,0,0,0,0,0,0,0,-1,-1,-1,0,0,0,-11,-11,-14,8,-10,-10,-25,-12,-12,-10,-8,0,-25,-12,-35,0,0,0,0,0,0,0,0,0,0,0,0,0,0,0,0,0,0,0,0,0,0,0,0,0,0,0,0,0,0,0,0,0,0,0,0,0,0,0,0,0,0,0,0,0,0,0,0,8,0,0,0,8,0,8,0,8,8,8,8,8,8,8,0,8,0,8,0,8,8,8,0,8,0,8,0,8,0,8,0,8,0,8,0,8,0,0,0,0,0,0,0,8,8,8,8]} 1. e4 {[%emt 0:00:11]} c5 {[%emt 0:00:06]} 2. Nf3 {[%emt 0:00:11]} d6 {[%emt 0:00:06]} 3. d4 {[%emt 0:01:14]} cxd4 {[%emt 0:00:05]} 4. Nxd4 {[%emt 0:00:03]} Nf6 {[%emt 0:00:05]} 5. Nc3 {[%emt 0:00:05]} a6 {[%emt 0:00:05]} 6. Qd3 {[%emt 0:00:05]} Nbd7 {[%emt 0:00:35]} 7. a4 {[%emt 0:00:20]} g6 {[%emt 0:00:46]} 8. Be2 {[%emt 0:00:50]} Bg7 {[%emt 0:01:31]} 9. O-O {[%emt 0:00:11]} b6 {[%emt 0:12:24]} 10. Nc6 {[%emt 0:18:51]} Qc7 {[%emt 0:00:19]} 11. Nb4 {[%emt 0:01:18]} Bb7 {[%emt 0:00:27]} 12. Nbd5 {[%emt 0:00:10]} Nxd5 {[%emt 0:12:07]} 13. Nxd5 {[%emt 0:01:49]} Bxd5 {[%emt 0:01:04]} 14. exd5 {[%emt 0:01:00]} O-O {[%emt 0:01:36]} 15. c3 {[%emt 0:00:56]} Nc5 {[%emt 0:06:39]} 16. Qc2 {[%emt 0:00:49]} Qb7 {[%emt 0:00:35][%cal Ob6b5]} 17. Be3 {[%emt 0:12:06]} b5 $1 {[%emt 0:09:23]} 18. Bxc5 {[%emt 0:08:26]} dxc5 {[%emt 0:00:04]} 19. Bf3 {[%emt 0:00:04][%cal Od5d6] [#] Threatens to win with d6!} Rab8 {[%emt 0:07:10]} 20. Rfe1 {[%emt 0:06:55]} Qc7 {[%emt 0:01:23]} 21. axb5 {[%emt 0:00:58]} axb5 {[%emt 0:00:03]} 22. Ra6 {[%emt 0:00:05]} b4 {[%emt 0:01:46]} 23. g3 {[%emt 0:01:09]} bxc3 {[%emt 0:05:08]} 24. bxc3 {[%emt 0:00:01]} Bf6 {[%emt 0:00:06]} 25. Kg2 {[%emt 0:02:27]} Rb6 {[%emt 0:00:31]} 26. Rxb6 {[%emt 0:00:05]} Qxb6 {[%emt 0:00:03]} 27. Rb1 {[%emt 0:00:05]} Qc7 {[%emt 0:01:37]} 28. Qd3 {[%emt 0:03:47]} Rb8 {[%emt 0:04:09]} 29. d6 {[%emt 0:00:34]} exd6 {[%emt 0:00:08]} 30. Ra1 {[%emt 0:03:21]} c4 {[%emt 0:01:52]} 31. Qe3 {[%emt 0:00:06]} Qc5 {[%emt 0:01:12]} 32. Qxc5 {[%emt 0:01:58]} dxc5 $11 {[%emt 0:00:02][%mdl 4096] Endgame. KRB-KRB} 33. Ra7 {[%emt 0:00:13]} Re8 {[%emt 0:01:46]} (33... Bxc3 $5 34. Bd5 $8 Rb4 $11) 34. Bd5 {[%emt 0:00:23][%csl LRc4,LRf7]} Re7 {[%emt 0:00:01]} 35. Ra3 {[%emt 0:00:10]} h5 {[%emt 0:00:24]} 36. Bxc4 {[%emt 0:00:11]} Kg7 {[%emt 0:00:03]} 37. h3 {[%emt 0:00:24]} h4 {[%emt 0:05:50]} 38. g4 {[%emt 0:01:15]} Be5 {[%emt 0:01:04]} 39. Bd5 {[%emt 0:00:32]} c4 {[%emt 0:00:30]} 40. g5 {[%emt 0:01:04]} Bf4 {[%emt 0:06:35]} 41. Bxc4 {[%emt 0:00:08]} Re5 {[%emt 0:00:42]} 42. Bd3 {[%emt 0:01:10]} (42. Ra7 $5 Rxg5+ 43. Kf3 $11) 42... Bxg5 {[%emt 0:03:26]} ({Don't play} 42... Rxg5+ 43. Kf1 $15) 43. c4 {[%emt 0:00:58]} Be7 {[%emt 0:02:17]} 44. Ra7 {[%emt 0:00:25]} Bc5 {[%emt 0:02:54]} 45. Rc7 {[%emt 0:00:58]} Bb6 {[%emt 0:01:38]} 46. Rc6 {[%emt 0:00:13]} Bd4 {[%emt 0:00:54]} 47. Kf3 {[%emt 0:00:37]} Re6 {[%emt 0:00:26]} 48. Rxe6 {[%emt 0:02:23] The position is equal.} fxe6 {[%emt 0:00:04] KB-KB} 49. Kg4 {[%emt 0:00:56]} Bxf2 {[%emt 0:00:10]} 50. Kg5 {[%emt 0:00:01]} Be3+ {[%emt 0:00:10]} 51. Kxh4 {[%emt 0:00:01]} g5+ {[%emt 0:00:09]} 52. Kg4 {[%emt 0:00:01]} Kf6 {[%emt 0:00:04]} 53. Bc2 {[%emt 0:00:05]} Bc5 {[%emt 0:00:05]} 54. Bd3 {[%emt 0:00:02]} Bb6 {[%emt 0:00:04]} 55. Bc2 {[%emt 0:00:03]} Ba7 {[%emt 0:00:02]} 56. Bd3 {[%emt 0:00:09]} Bc5 {[%emt 0:00:02]} 57. Bc2 {[%emt 0:00:06]} Bg1 {[%emt 0:00:02]} 58. Bd3 {[%emt 0:00:07]} Bc5 {[%emt 0:00:04]} 59. Bc2 {[%emt 0:00:25]} Be7 {[%emt 0:00:04]} 60. Bd3 {[%emt 0:00:04]} Ke5 {[%emt 0:00:02]} 61. c5 {[%emt 0:00:15]} Kd5 {[%emt 0:00:06]} 62. c6 {[%emt 0:00:48]} Kxc6 {[%emt 0:00:05]} 63. Bc4 $1 {[%emt 0:00:02]} e5 {[%emt 0:00:04]} 64. Kf5 {[%emt 0:00:07]} Kd6 {[%emt 0:00:01]} 65. Bb3 {[%emt 0:00:09]} Bd8 {[%emt 0:00:08]} 66. Ba2 {[%emt 0:00:03]} Be7 {[%emt 0:00:07]} 67. Bb3 {[%emt 0:00:04]} Bd8 {[%emt 0:00:08]} 68. Ba2 {[%emt 0:00:04]} e4 {[%emt 0:00:02]} 69. Kxe4 {[%emt 0:00:06]} Ba5 {[%emt 0:00:02]} 70. Kf5 {[%emt 0:00:08]} Bd8 {[%emt 0:00:03]} 71. Bb3 {[%emt 0:00:50]} Kc5 {[%emt 0:00:02]} 72. Kg4 {[%emt 0:00:25]} Kd4 {[%emt 0:00:12]} 73. Ba2 {[%emt 0:00:10]} Kc3 {[%emt 0:00:03]} 74. Be6 {[%emt 0:00:12]} Kd2 {[%emt 0:00:04]} 75. Ba2 {[%emt 0:00:15]} Kc1 {[%emt 0:00:02]} 76. Bd5 {[%emt 0:00:07]} Kb2 {[%emt 0:00:02]} 77. Be6 {[%emt 0:00:22]} Kc3 {[%emt 0:00:02]} 78. Ba2 {[%emt 0:00:11]} Kc2 {[%emt 0:00:07]} 79. Be6 {[%emt 0:00:06]} Kc1 {[%emt 0:00:03]} 80. Ba2 {[%emt 0:00:07]} Be7 {[%emt 0:00:03]} 81. Be6 {[%emt 0:00:11]} Kb1 {[%emt 0:00:02]} 82. Bd5 {[%emt 0:00:08]} Kb2 {[%emt 0:00:04]} 83. Be6 {[%emt 0:00:07]} Kc2 {[%emt 0:00:04]} 84. Bd5 {[%emt 0:00:09]} Kc3 {[%emt 0:00:03]} 85. Ba2 {[%emt 0:00:07]} Kd2 {[%emt 0:00:03]} 86. Be6 {[%emt 0:00:11]} Kc1 {[%emt 0:00:02]} 87. Bd5 {[%emt 0:01:33]} Kd1 {[%emt 0:00:09]} 88. Be6 {[%emt 0:00:07]} Ke1 {[%emt 0:00:03]} 89. Bd5 {[%emt 0:00:07]} Kf2 {[%emt 0:00:03]} 90. Be6 {[%emt 0:00:15]} Ke3 {[%emt 0:00:04]} 91. Bd5 {[%emt 0:00:07]} Kd4 {[%emt 0:00:04]} 92. Be6 {[%emt 0:00:05]} Ke5 {[%emt 0:00:04]} 93. Ba2 {[%emt 0:00:14]} Kf6 {[%emt 0:00:03]} 94. h4 {[%emt 0:00:03]} gxh4 {[%emt 0:00:04]} 95. Kxh4 {Weighted Error Value: White=0.05 (flawless) /Black=0.05 (flawless) .  Inaccurate:     	White=2     	Black=2      OK:         	White=30    	Black=29     Best:        	---       	Black=2      Strong:       	White=1     	Black=1} 1/2-1/2

[Event "GCT Superbet Romania 2024"]
[Site "Bucharest"]
[Date "2024.07.03"]
[Round "7.1"]
[White "Nepomniachtchi, Ian"]
[Black "Praggnanandhaa R"]
[Result "1/2-1/2"]
[ECO "C83"]
[WhiteElo "2770"]
[BlackElo "2747"]
[Annotator "TA"]
[PlyCount "48"]
[EventDate "2024.06.24"]
[EventType "tourn"]
[EventCountry "ROU"]
[SourceTitle "playchess.com"]
[Source "ChessBase"]
[SourceQuality "1"]
[TimeControl "7200+30"]

{[%evp 18,48,34,19,15,26,9,22,17,8,4,5,0,0,0,0,0,0,0,0,0,0,0,0,0,0,0,0,0,0,0,0,0]} 1. e4 {[%emt 0:00:27]} e5 {[%emt 0:00:40]} 2. Nf3 {[%emt 0:00:08]} Nc6 {[%emt 0:00:03]} 3. Bb5 {[%emt 0:00:34][%cal Bf1b5,Bb5a4,Ba4b3,Bb3c2][%mdl 32]} a6 {[%emt 0:00:36]} 4. Ba4 {[%emt 0:00:47]} Nf6 {[%emt 0:00:07]} 5. O-O {[%emt 0:01:33]} Nxe4 {[%emt 0:00:21]} 6. d4 {[%emt 0:01:17]} b5 {[%emt 0:00:38]} 7. Bb3 {[%emt 0:00:16]} d5 {[%emt 0:00:07]} 8. dxe5 {[%emt 0:01:59]} Be6 {[%emt 0:00:29]} 9. c3 {[%emt 0:01:35]} Be7 {[%emt 0:00:18]} 10. Bf4 {[%emt 0:08:31]} O-O {[%emt 0:02:32]} 11. Nd4 {[%emt 0:06:46]} Qd7 {[%emt 0:01:08]} 12. Bc2 {[%emt 0:04:57] The position is equal.} (12. Nxc6 {simplifies} Qxc6 13. Nd2 Nxd2 14. Qxd2 Qd7 15. Be3) 12... f6 {[%emt 0:04:18]} (12... f5 {simplifies} 13. exf6 Nxd4 14. fxe7 Qxe7 15. Qxd4 Rxf4 16. Nd2 c5) 13. Nxe6 {[%emt 0:01:27]} Qxe6 {[%emt 0:00:12]} 14. exf6 {[%emt 0:00:06][%cal Of1e1]} Bc5 {[%emt 0:07:55] [#] Hoping for ...Nxf2.} 15. Nd2 {[%emt 0:02:22][%cal Bb1d2,Bd2b3,Bb3c5][%mdl 32]} (15. Bxc7 Nxf2 16. Qh5 (16. Rxf2 $2 Rxf6 17. Kh1 Bxf2 $19) 16... Ne4+ (16... Qxf6 17. Bxh7+ Kh8 18. Bg6+ Kg8 19. Qh7#) 17. Kh1 Rxf6 $17 (17... gxf6 $2 18. Nd2 $18) (17... Nxf6 18. Qh3 $17) (17... gxf6 $2 18. Nd2 $18) (17... Nxf6 18. Qh3 $17)) 15... Nxf2 {[%emt 0:03:05] Excellent horsemanship.} 16. Qh5 {[%emt 0:00:38]} (16. Rxf2 Bxf2+ 17. Kxf2 Qxf6 $15) 16... Rxf6 {[%emt 0:01:34] aiming for ...g6.} 17. Qxh7+ {[%emt 0:00:10]} (17. Bxc7 $2 g6 $19) 17... Kf8 $1 {[%emt 0:05:33]} 18. Nb3 {[%emt 0:00:33] Really sharp!} Rxf4 {[%emt 0:15:38]} (18... Nh3+ 19. Kh1 Nf2+ 20. Rxf2 Bxf2 21. Bg5 $18) 19. Nxc5 {[%emt 0:27:28]} Qe3 {[%emt 0:01:32]} 20. Qh8+ {[%emt 0:01:06]} Kf7 $1 {[%emt 0:01:40]} 21. Qh5+ {[%emt 0:00:37]} (21. Qxa8 $2 Nd1+ (21... Qxc5 $2 22. h4 $19) (21... Qxc5 $2 22. h4 $19)) 21... Kf8 {[%emt 0:00:59]} (21... Ke7 $5 22. Qg5+ $8 (22. Qxd5 $2 Nd1+) 22... Kd6 23. Nb7+ Ke6 $11) 22. Qh8+ {[%emt 0:09:46]} (22. Qxd5 $2 Nd1+) 22... Kf7 $1 {[%emt 0:00:42]} 23. Qh5+ {[%emt 0:00:59]} (23. Qxa8 $2 Nd1+ (23... Qxc5 $2 24. h4 $19) (23... Qxc5 $2 24. h4 $19)) 23... Kf8 {[%emt 0:00:33] [#] ( -> ...Nd1+)} (23... Ke7 $5 24. Qg5+ $8 (24. Qxd5 $2 {leads to mate.} Nd1+) 24... Kd6 25. Nb7+ Ke6 26. Qg6+ (26. Qxg7 $2 {gets mated.} Nd1+) 26... Ke7 27. Qxg7+ (27. Qxc6 $2 Nd1+) 27... Rf7 $11) 24. Qh8+ {[%emt 0:04:17]} (24. Qxd5 $2 {is a self mate.} Nd1+) 24... Kf7 $1 {[%emt 0:00:56] Not much happened in this game.   Weighted Error Value: White=0.01 (flawless) /Black=0.00 (flawless) .  OK:         	White=11    	Black=8      Best:        	White=1     	---        Strong:       	---       	Black=4} 1/2-1/2

[Event "GCT Superbet Romania 2024"]
[Site "Bucharest"]
[Date "2024.07.03"]
[Round "7.2"]
[White "Giri, Anish"]
[Black "Vachier-Lagrave, Maxime"]
[Result "1/2-1/2"]
[ECO "A20"]
[WhiteElo "2745"]
[BlackElo "2732"]
[Annotator "TA"]
[PlyCount "74"]
[EventDate "2024.06.24"]
[EventType "tourn"]
[EventCountry "ROU"]
[SourceTitle "playchess.com"]
[Source "ChessBase"]
[SourceQuality "1"]
[TimeControl "7200+30"]

{[%evp 9,74,6,21,0,7,0,17,25,22,12,19,-6,-6,-7,-7,-5,-3,-17,-17,-14,0,0,0,0,0,-5,0,-5,-4,-4,0,-6,0,0,0,0,0,-7,0,-13,-10,-8,-6,-27,18,-41,-53,-29,-19,-29,-17,-25,-13,-46,-16,-59,-52,-49,-45,-50,-50,-47,0,-51,0,-44,0]} 1. c4 {[%emt 0:00:04]} e5 {[%emt 0:00:04]} 2. d3 {[%emt 0:00:10]} Nf6 {[%emt 0:02:15]} 3. Nf3 {[%emt 0:00:13]} Nc6 {[%emt 0:00:04]} 4. a3 {[%emt 0:00:17]} a5 {[%emt 0:02:45]} 5. Nc3 {[%emt 0:00:58]} Be7 {[%emt 0:03:33]} 6. e4 {[%emt 0:03:49]} O-O {[%emt 0:00:36]} 7. Be2 {[%emt 0:08:21]} d6 {[%emt 0:02:18]} 8. Rb1 {[%emt 0:00:56] The position is equal.} Bg4 {[%emt 0:05:57]} 9. Be3 {[%emt 0:09:08]} Nd7 {[%emt 0:02:54]} 10. Nd5 {[%emt 0:13:45][%cal Of3e5]} Bxf3 {[%emt 0:03:04]} 11. Bxf3 {[%emt 0:00:07]} a4 {[%emt 0:01:59] Inhibits Qb3.} 12. Bg4 {[%emt 0:07:10]} Nc5 {[%emt 0:02:25]} 13. O-O {[%emt 0:00:23]} Nd4 {[%emt 0:03:11]} 14. f4 {[%emt 0:07:28]} c6 {[%emt 0:01:05]} 15. Bxd4 {[%emt 0:16:15]} exd4 {[%emt 0:00:10]} 16. Nb4 {[%emt 0:00:03]} Bf6 {[%emt 0:01:33]} 17. Qf3 {[%emt 0:01:42]} g6 {[%emt 0:01:38]} 18. Rbe1 {[%emt 0:00:28]} Qe7 {[%emt 0:01:50]} 19. Re2 {[%emt 0:00:20]} Bg7 {[%emt 0:01:10]} 20. Rfe1 {[%emt 0:00:57]} Rae8 {[%emt 0:00:52]} 21. g3 {[%emt 0:00:16]} h5 {[%emt 0:07:00]} 22. Bh3 {[%emt 0:00:06]} Qd8 {[%emt 0:00:05]} 23. Kh1 {[%emt 0:02:16]} Kh7 {[%emt 0:01:43]} 24. Bg2 {[%emt 0:02:55]} h4 {[%emt 0:04:53]} 25. Bh3 {[%emt 0:04:51]} Rh8 {[%emt 0:00:13]} 26. Rf1 {[%emt 0:04:07]} Kg8 {[%emt 0:07:45]} 27. Rg2 {[%emt 0:00:50]} (27. g4 $1 $11) 27... hxg3 $15 {[%emt 0:10:46]} 28. Rxg3 {[%emt 0:01:10]} Qh4 {[%emt 0:00:06][%cal Of7f5]} 29. Qg2 {[%emt 0:00:57]} Rh6 {[%emt 0:04:25]} 30. Bg4 {[%emt 0:02:51]} Kh7 {[%emt 0:02:26]} 31. Rh3 {[%emt 0:00:47]} Qf6 {[%emt 0:02:07]} 32. Qg3 {[%emt 0:03:04]} Rxh3 {[%emt 0:01:52]} 33. Qxh3+ {[%emt 0:00:18]} Bh6 {[%emt 0:00:07]} 34. Qg3 {[%emt 0:02:54]} Bg5 {[%emt 0:06:46]} 35. Qh3+ {[%emt 0:05:10]} Bh6 {[%emt 0:00:05]} 36. Qg3 $1 {[%emt 0:00:03]} Bg5 {[%emt 0:00:47]} 37. Qh3+ {[%emt 0:00:03]} Bh6 {[%emt 0:07:35] Weighted Error Value: White=0.09 (flawless) /Black=0.09 (flawless) .  Mistake:       	White=1     	---        Inaccurate:     	White=2     	Black=3      OK:         	White=14    	Black=10     Best:        	White=1     	---        Strong:       	White=1     	---} 1/2-1/2

[Event "GCT Superbet Romania 2024"]
[Site "Bucharest"]
[Date "2024.07.03"]
[Round "7.3"]
[White "So, Wesley"]
[Black "Abdusattorov, Nodirbek"]
[Result "1/2-1/2"]
[ECO "D27"]
[WhiteElo "2757"]
[BlackElo "2766"]
[Annotator "TA"]
[PlyCount "172"]
[EventDate "2024.06.24"]
[EventType "tourn"]
[EventCountry "ROU"]
[SourceTitle "playchess.com"]
[Source "ChessBase"]
[SourceQuality "1"]
[TimeControl "7200+30"]

{[%evp 92,172,567,183,166,192,218,201,230,194,279,199,320,222,420,223,202,200,272,276,330,0,157,0,305,0,0,0,0,0,0,0,0,0,0,0,0,0,0,0,0,0,0,0,0,0,0,0,0,0,0,0,0,0,0,0,0,0,0,0,0,0,0,0,0,0,0,0,0,0,0,0,0,0,0,0,0,0,0,0,0,0,0]} 1. d4 {[%emt 0:00:02]} d5 {[%emt 0:00:22]} 2. c4 {[%emt 0:00:08]} dxc4 {[%emt 0:00:05]} 3. e3 {[%emt 0:00:20]} Nf6 {[%emt 0:01:06]} 4. Bxc4 {[%emt 0:00:05]} e6 {[%emt 0:00:38]} 5. Nf3 {[%emt 0:00:12]} a6 {[%emt 0:00:07]} 6. O-O {[%emt 0:00:10]} c5 {[%emt 0:00:05]} 7. Be2 {[%emt 0:00:45] D27: Queen's Gambit Accepted: Classical main line: 7 e4!? and 7 a4.} Nbd7 {[%emt 0:05:43]} 8. Nc3 {[%emt 0:00:20]} b5 {[%emt 0:06:09]} 9. d5 {[%emt 0:00:17]} exd5 {[%emt 0:00:05]} 10. Nxd5 {[%emt 0:01:25]} Bb7 {[%emt 0:00:08]} 11. Nxf6+ {[%emt 0:00:04]} Qxf6 {[%emt 0:00:17]} 12. a4 {[%emt 0:00:14]} b4 {[%emt 0:00:28]} 13. e4 {[%emt 0:00:46] 13.Qc2 is more fashionable.} h6 {[%emt 0:08:09]} 14. Qc2 {[%emt 0:00:54]} Bd6 {[%emt 0:08:25]} 15. Be3 {[%emt 0:17:35]} O-O {[%emt 0:02:38]} 16. Rad1 {[%emt 0:04:04]} Rad8 {[%emt 0:03:32]} 17. Nd2 {[%emt 0:01:56]} Bf4 $146 {[%emt 0:17:16]} ({Predecessor:} 17... Be5 18. Nc4 Bd4 19. Na5 Ba8 20. Bxd4 cxd4 21. Nb3 Nb6 22. a5 Na4 23. Bd3 Rfe8 {1-0 Xiang,Z (2407)-Stoyanov,T (2465) Prague op 2024 (5)}) 18. Bxf4 {[%emt 0:12:21]} Qxf4 {[%emt 0:00:56]} 19. g3 {[%emt 0:00:06]} Qf6 {[%emt 0:01:29]} 20. a5 {[%emt 0:11:53]} Qe7 {[%emt 0:04:20]} 21. Rc1 {[%emt 0:06:04]} f5 {[%emt 0:06:46]} 22. Bc4+ {[%emt 0:09:54]} Kh8 {[%emt 0:00:30]} 23. Bd5 {[%emt 0:00:35]} Bc8 {[%emt 0:11:11]} 24. exf5 {[%emt 0:21:59]} Ne5 {[%emt 0:02:06]} 25. Be4 {[%emt 0:00:06]} Bxf5 {[%emt 0:00:42]} 26. Qxc5 {[%emt 0:01:00]} Qe8 {[%emt 0:14:21]} 27. f4 {[%emt 0:08:12]} Bxe4 {[%emt 0:05:53]} 28. fxe5 {[%emt 0:00:04]} Rxf1+ {[%emt 0:00:35]} 29. Rxf1 {[%emt 0:00:15]} Bd3 {[%emt 0:02:01]} 30. Re1 {[%emt 0:02:11]} Qe6 {[%emt 0:07:01]} 31. Qb6 {[%emt 0:05:16]} Qd5 {[%emt 0:00:06]} 32. e6 {[%emt 0:06:45]} Bb5 {[%emt 0:01:02]} 33. e7 {[%emt 0:00:43]} Re8 {[%emt 0:00:22]} 34. Qf2 {[%emt 0:01:25]} Bc6 {[%emt 0:09:18]} 35. Ne4 {[%emt 0:00:55]} Qd7 {[%emt 0:00:20]} 36. Qf8+ {[%emt 0:05:39]} Kh7 {[%emt 0:00:01]} 37. Qf7 {[%emt 0:01:45]} Kh8 {[%emt 0:02:14]} 38. Qf8+ {[%emt 0:02:54]} Kh7 {[%emt 0:00:01]} 39. Qf7 {[%emt 0:00:05]} Kh8 {[%emt 0:01:23]} 40. Nf2 {[%emt 0:01:40]} Bb7 {[%emt 0:01:27]} 41. h4 {[%emt 0:01:04]} Bc6 {[%emt 0:02:25]} 42. Qe6 {[%emt 0:00:51]} Qc7 43. Kh2 {[%emt 0:01:23]} Bb5 {[%emt 0:01:39]} 44. Qe5 {[%emt 0:00:33]} Qc2 {[%emt 0:00:29]} 45. Kg1 {[%emt 0:00:28]} Qb3 {[%emt 0:02:06]} 46. Re3 {[%emt 0:01:40]} Qc4 $2 {[%emt 0:00:31]} (46... Qf7 {is tougher.}) 47. Kh2 $2 {[%emt 0:01:16]} (47. Rf3 {And now Rf8+ would win.} Kg8 48. Ne4) 47... Qf7 {[%emt 0:00:50]} 48. Nh3 {[%emt 0:00:30]} Qf1 {[%emt 0:01:03]} 49. Re1 {[%emt 0:00:49]} Qd3 {[%emt 0:00:36]} 50. Nf4 {[%emt 0:00:29]} Qd2+ {[%emt 0:01:07]} (50... Qc2+ {keeps fighting.} 51. Kg1 b3) 51. Kg1 {[%emt 0:00:04]} Bc6 {[%emt 0:00:22]} (51... Qc2 $142 52. Qd4 b3) 52. h5 {[%emt 0:01:08]} b3 $2 {[%emt 0:00:36]} (52... Qc2 {was worth a try.} 53. g4 Qb3) 53. Re2 {[%emt 0:03:09]} (53. Rf1 $142) 53... Qd1+ {[%emt 0:00:05]} 54. Kf2 $1 {[%emt 0:00:04]} Qh1 {[%emt 0:01:01]} 55. Ng6+ {[%emt 0:01:07]} Kh7 {[%emt 0:00:05]} 56. Nf8+ $2 {[%emt 0:00:38]} ({Only move:} 56. Nh4 $1 $18) 56... Kh8 $2 {[%emt 0:00:07] [#]} ({Black should try} 56... Kg8 $1 $11) 57. Ng6+ {[%emt 0:00:13]} (57. Re3 $1 $16) 57... Kh7 $18 {[%emt 0:00:05] [#]} 58. Qf5 $2 {[%emt 0:00:56]} ({White must play} 58. Nh4 $1 $18) 58... Qh2+ {[%emt 0:00:36]} 59. Ke3 {[%emt 0:00:08]} Qxg3+ {[%emt 0:01:47]} 60. Kd4 {[%emt 0:00:27]} (60. Kd2 $5 Qd6+ $8 61. Ke1 $11) 60... Qd6+ {[%emt 0:01:05]} 61. Kc3 {[%emt 0:00:04]} Qg3+ $1 {[%emt 0:00:33]} 62. Kb4 {[%emt 0:02:26]} (62. Kd4 $5 Qd6+ $8 63. Kc3 Qg3+ 64. Kd2 Qd6+ 65. Kc1 $11) 62... Qd6+ {[%emt 0:01:00]} 63. Kc3 {[%emt 0:00:42]} Qg3+ $1 {[%emt 0:00:39]} 64. Kd2 {[%emt 0:00:25]} Qd6+ $1 {[%emt 0:00:06]} 65. Kc1 {[%emt 0:00:24]} Bb5 {[%emt 0:00:45]} 66. Nf8+ {[%emt 0:00:46]} Kg8 {[%emt 0:00:06]} 67. Qh7+ {[%emt 0:00:13]} Kf7 {[%emt 0:00:39]} 68. Qf5+ {[%emt 0:00:08]} Kg8 {[%emt 0:00:53]} 69. Qh7+ {[%emt 0:01:01]} Kf7 {[%emt 0:00:01]} 70. Rf2+ {[%emt 0:00:17]} Kxe7 {[%emt 0:00:56]} 71. Qe4+ {[%emt 0:00:04]} Kd8 {[%emt 0:00:06]} 72. Qa8+ {[%emt 0:00:01]} Kc7 {[%emt 0:02:09]} 73. Rf7+ {[%emt 0:00:25]} Re7 {[%emt 0:00:06]} 74. Qa7+ {[%emt 0:00:12]} Kd8 {[%emt 0:00:18]} 75. Qa8+ {[%emt 0:00:10]} Kc7 {[%emt 0:00:02]} 76. Qa7+ {[%emt 0:00:10]} Kd8 {[%emt 0:00:01]} 77. Rxe7 {[%emt 0:00:44]} Qc6+ {[%emt 0:02:15]} 78. Kd2 {[%emt 0:00:01]} Qc2+ {[%emt 0:01:00]} 79. Ke3 {[%emt 0:00:18]} Qe2+ {[%emt 0:00:19]} 80. Kf4 {[%emt 0:00:22]} Qh2+ {[%emt 0:00:07]} 81. Ke3 {[%emt 0:02:05]} Qg3+ {[%emt 0:00:34]} 82. Kd2 {[%emt 0:00:39]} ({But not} 82. Kd4 $2 Qd6+ 83. Ke3 (83. Kc3 $2 {gets mated.} Qd3+ 84. Kb4 Qc4+ 85. Ka3 Qa4#) 83... Qxe7+ 84. Qxe7+ Kxe7 85. Ng6+ Kd6 $19) 82... Qd3+ {[%emt 0:00:48]} 83. Ke1 {[%emt 0:00:02]} Qf1+ {[%emt 0:00:07]} 84. Kd2 {[%emt 0:00:00]} Qd3+ {[%emt 0:00:06]} 85. Ke1 {[%emt 0:00:01]} Qf1+ {[%emt 0:00:05]} 86. Kd2 {[%emt 0:00:02]} Qd3+ {[%emt 0:00:08]} 1/2-1/2

[Event "GCT Superbet Romania 2024"]
[Site "Bucharest"]
[Date "2024.07.03"]
[Round "7.4"]
[White "Deac, Bogdan-Daniel"]
[Black "Firouzja, Alireza"]
[Result "1/2-1/2"]
[ECO "E43"]
[WhiteElo "2680"]
[BlackElo "2737"]
[Annotator "TA"]
[PlyCount "89"]
[EventDate "2024.06.24"]
[EventType "tourn"]
[EventCountry "ROU"]
[SourceTitle "playchess.com"]
[Source "ChessBase"]
[SourceQuality "1"]
[TimeControl "7200+30"]

{[%evp 19,89,15,13,0,12,4,23,0,10,0,4,9,12,0,0,0,0,0,13,0,0,0,0,0,0,0,0,0,0,0,0,0,0,0,0,0,0,0,0,0,0,0,0,0,0,0,0,0,0,0,0,0,0,0,0,0,0,0,0,0,0,0,0,0,0,0,0,0,0,0,0,0]} 1. d4 {[%emt 0:00:03]} Nf6 {[%emt 0:00:07]} 2. c4 {[%emt 0:00:02]} e6 {[%emt 0:00:06]} 3. Nc3 {[%emt 0:00:34]} Bb4 {[%emt 0:02:11]} 4. e3 {[%emt 0:00:15]} O-O {[%emt 0:03:43]} 5. Bd3 {[%emt 0:00:59]} c5 {[%emt 0:02:19]} 6. Nf3 {[%emt 0:03:49]} b6 {[%emt 0:04:27]} 7. O-O {[%emt 0:06:41]} Bb7 {[%emt 0:01:39]} 8. Na4 {[%emt 0:00:36]} cxd4 {[%emt 0:00:20]} 9. exd4 {[%emt 0:00:49]} Re8 {[%emt 0:02:30]} 10. a3 {[%emt 0:02:50]} Bf8 {[%emt 0:00:13]} 11. b4 {[%emt 0:00:06]} d6 {[%emt 0:01:53]} 12. Nc3 {[%emt 0:05:06]} a5 {[%emt 0:08:11]} 13. Rb1 {[%emt 0:13:15][%cal Ba1b1,Bb1b2,Bb2c2][%mdl 32] White has an edge.} axb4 {[%emt 0:02:54] The position is equal.} 14. axb4 {[%emt 0:00:10]} e5 {[%emt 0:02:37] [#] Hoping for ...e4.} 15. Be2 {[%emt 0:20:26]} Ne4 {[%emt 0:46:57]} 16. Nxe4 {[%emt 0:33:44]} Bxe4 {[%emt 0:00:51]} 17. Rb2 {[%emt 0:02:00]} Nc6 {[%emt 0:04:33]} 18. Be3 {[%emt 0:01:14]} Rc8 {[%emt 0:05:40]} 19. dxe5 {[%emt 0:16:06]} Bxf3 {[%emt 0:01:26]} 20. Bxf3 {[%emt 0:01:43] [#] aiming for exd6.} Nxe5 {[%emt 0:00:07]} 21. Bd5 {[%emt 0:00:06]} Nxc4 {[%emt 0:00:35]} 22. Rc2 {[%emt 0:00:14]} b5 {[%emt 0:01:46]} 23. Qe2 {[%emt 0:00:45]} Qd7 {[%emt 0:03:14]} ({Much weaker is} 23... Nxe3 24. Rxc8 (24. fxe3 Re7 $11) 24... Qxc8 25. fxe3 $11) 24. Bxc4 {[%emt 0:03:48]} (24. Qd3 {is interesting.} Ne5 25. Qb3 Rxc2 26. Qxc2 Rc8 27. Qe4) 24... bxc4 {[%emt 0:00:20]} 25. Rxc4 {[%emt 0:00:02]} Rxc4 {[%emt 0:01:17]} 26. Qxc4 {[%emt 0:00:03]} d5 {[%emt 0:00:07]} 27. Qb3 {[%emt 0:02:06]} Qb5 {[%emt 0:01:52]} 28. Rd1 {[%emt 0:03:06]} Rd8 {[%emt 0:03:40]} 29. Bd2 {[%emt 0:05:24]} d4 {[%emt 0:01:32]} 30. h3 {[%emt 0:00:14]} Qe2 {[%emt 0:02:40]} 31. Qf3 {[%emt 0:06:09]} d3 {[%emt 0:07:03]} 32. b5 {[%emt 0:00:07]} Rb8 {[%emt 0:02:58]} 33. Qxe2 {[%emt 0:00:21]} dxe2 $11 {[%emt 0:00:05][%mdl 4096] Endgame. KRB-KRB} 34. Re1 {[%emt 0:00:03]} Rxb5 {[%emt 0:00:05]} 35. Rxe2 {[%emt 0:00:03]} f6 {[%emt 0:00:20]} 36. g3 {[%emt 0:00:09]} Kf7 {[%emt 0:00:09]} 37. Be3 {[%emt 0:00:04]} Bc5 {[%emt 0:00:07]} 38. Bxc5 {[%emt 0:00:04]} Rxc5 {[%emt 0:00:04] KR-KR} 39. h4 {[%emt 0:00:04]} h5 {[%emt 0:00:08]} 40. Kg2 {[%emt 0:00:03]} Ra5 {[%emt 0:00:06]} 41. Rd2 {[%emt 0:00:04]} Rc5 {[%emt 0:00:07]} 42. Re2 {[%emt 0:00:04]} Ra5 {[%emt 0:00:04]} 43. Rd2 {[%emt 0:00:03]} Rc5 {[%emt 0:00:04]} 44. Re2 {[%emt 0:00:02]} Ra5 {[%emt 0:00:06]} 45. Rd2 {[%emt 0:00:04] A balanced but interesting game.   Weighted Error Value: White=0.02 (flawless) /Black=0.01 (flawless) .  OK:         	White=18    	Black=10     Best:        	---       	Black=3} 1/2-1/2